bitfinex-derivatives/quotes_SOLF0:USTF0_20260123
["timestamp","ask_amount","ask_price","bid_price","bid_amount"]
[1769183486073,8.13679904,127.73,127.65,8.76865277]
[1769183486970,15.19189904,127.73,127.65,15.82775277]
[1769183487570,8.13679904,127.73,127.68,0.05085488]
[1769183488367,8.13679904,127.76,127.68,8.81950765]
[1769183489073,8.13679904,127.76,127.68,8.76865277]
[1769183489459,7.0539,127.75,127.68,8.76865277]
[1769183490365,8.13679904,127.76,127.68,8.76865277]
[1769183490770,15.19029904,127.76,127.68,8.76865277]
[1769183490966,15.19029904,127.76,127.65,8.76865277]
[1769183490967,8.13679904,127.75,127.65,8.76865277]
[1769183491676,0.04960629,127.71,127.65,15.82775277]
[1769183494070,8.19091129,127.71,127.63,7.0601]
[1769183494473,8.141305,127.71,127.62,8.56237177]
[1769183494678,109.7474,127.73,127.62,8.56237177]
[1769183494679,8.141305,127.7,127.62,8.56237177]
[1769183495379,0.05406992,127.67,127.62,15.62287177]
[1769183496568,0.05406992,127.67,127.63,7.0602]
[1769183496975,0.05406992,127.67,127.62,8.56237177]
[1769183497771,8.19537492,127.67,127.59,15.62457177]
[1769183498283,8.141305,127.67,127.59,15.62457177]
[1769183498776,8.141305,127.66,127.59,8.56237177]
[1769183498986,8.141305,127.66,127.57,15.62577177]
[1769183499274,15.201205,127.64,127.57,8.56237177]
[1769183499465,15.201205,127.64,127.56,7.0642]
[1769183499671,8.141305,127.62,127.51,8.56237177]
[1769183499985,15.203205,127.61,127.52,8.56237177]
[1769183500168,8.141305,127.61,127.53,8.56237177]
[1769183500485,13.2906849,127.63,127.53,8.56237177]
[1769183501378,0.05063313,127.59,127.53,8.56237177]
[1769183502287,0.05063313,127.59,127.49,109.9445]
[1769183502582,8.141305,127.58,127.48,8.56237177]
[1769183503085,13.2906849,127.56,127.47,7.069]
[1769183503481,8.141305,127.56,127.49,7.0679]
[1769183503879,0.04931033,127.53,127.49,7.0679]
[1769183504079,0.04931033,127.53,127.47,7.0691]
[1769183504486,0.04931033,127.53,127.45,8.56237177]
[1769183504787,0.04931033,127.53,127.45,15.63257177]
[1769183504988,8.141305,127.54,127.46,8.56237177]
[1769183505282,8.141305,127.54,127.47,7.069]
[1769183505885,8.141305,127.54,127.46,118.53467177]
[1769183505886,15.205305,127.57,127.48,15.63077177]
[1769183506690,0.05079171,127.54,127.48,15.63077177]
[1769183507483,8.141305,127.57,127.49,15.63017177]
[1769183509289,8.141305,127.57,127.52,0.05318816]
[1769183510286,12.2123799,127.59,127.52,0.05318816]
[1769183510491,13.2906849,127.59,127.52,0.05318816]
[1769183510687,20.3534849,127.59,127.52,0.05318816]
[1769183510993,8.141305,127.58,127.52,0.05318816]
[1769183511492,15.202905,127.61,127.52,8.61555993]
[1769183511892,15.202905,127.61,127.52,8.56237177]
[1769183512191,8.141305,127.61,127.52,8.56237177]
[1769183512590,8.141305,127.6,127.52,8.56237177]
[1769183513290,8.141305,127.6,127.55,0.05001024]
[1769183513592,7.0619,127.61,127.55,0.05001024]
[1769183514391,15.203205,127.61,127.55,0.05001024]
[1769183515493,15.202205,127.63,127.55,15.67708201]
[1769183515792,15.202205,127.63,127.55,0.05001024]
[1769183515793,8.141305,127.63,127.55,0.05001024]
[1769183515994,8.141305,127.63,127.52,8.56237177]
[1769183516298,8.141305,127.62,127.54,8.56237177]
[1769183517583,8.141305,127.62,127.57,0.05167395]
[1769183518499,7.0616,127.61,127.54,15.62767177]
[1769183519601,8.141305,127.62,127.54,15.62767177]
[1769183519993,0.05187933,127.59,127.54,15.62767177]
[1769183520198,0.05187933,127.59,127.55,7.0648]
[1769183520901,0.05187933,127.59,127.54,8.56237177]
[1769183522699,0.05187933,127.59,127.47,14.1379]
[1769183522900,16.04551266,127.58,127.51,8.9541656]
[1769183523798,8.98221266,127.58,127.52,7.0664]
[1769183523997,0.05489902,127.56,127.52,7.0664]
[1769183524200,0.05489902,127.56,127.48,8.9541656]
[1769183524402,0.05489902,127.56,127.45,8.9541656]
[1769183524403,9.03711168,127.56,127.45,8.9541656]
[1769183524703,8.98221266,127.56,127.45,8.9541656]
[1769183524995,7.0655,127.54,127.46,16.0236656]
[1769183525196,0.05159201,127.52,127.46,16.0236656]
[1769183526198,0.05159201,127.52,127.46,8.9541656]
[1769183526802,0.05159201,127.52,127.48,7.0686]
[1769183527003,118.5818902,127.57,127.46,8.9541656]
[1769183527004,8.6982902,127.57,127.49,8.46749211]
[1769183528006,7.0648,127.56,127.49,15.53549211]
[1769183529105,8.6982902,127.6,127.5,8.46749211]
[1769183529406,8.6982902,127.6,127.51,8.46749211]
[1769183531008,7.0626,127.59,127.52,7.0664]
[1769183531208,8.6982902,127.6,127.54,0.05281846]
[1769183531699,15.7607902,127.6,127.54,0.05281846]
[1769183532511,8.6982902,127.6,127.54,0.05281846]
[1769183532812,8.6982902,127.61,127.54,0.05281846]
[1769183533310,8.6982902,127.61,127.54,7.0653]
[1769183534310,15.7598902,127.61,127.54,7.0653]
[1769183534505,15.7598902,127.61,127.53,8.46749211]
[1769183535411,15.7598902,127.61,127.56,0.05126768]
[1769183535805,8.6982902,127.61,127.56,0.05126768]
[1769183536113,15.7589902,127.63,127.56,0.05126768]
[1769183536310,8.6982902,127.62,127.56,0.05126768]
[1769183536705,15.7592902,127.62,127.56,0.05126768]
[1769183536904,15.7592902,127.62,127.55,15.53229211]
[1769183537707,15.7592902,127.62,127.57,0.05216968]
[1769183538206,15.7600902,127.61,127.52,8.46749211]
[1769183538410,8.74845298,127.61,127.53,7.0656]
[1769183538711,8.6982902,127.66,127.55,8.46749211]
[1769183539014,8.6982902,127.66,127.56,15.53159211]
[1769183539314,7.06,127.64,127.56,15.53159211]
[1769183539613,8.6982902,127.64,127.56,8.46749211]
[1769183540112,8.6982902,127.64,127.59,0.05133112]
[1769183540504,109.7958,127.67,127.59,0.05133112]
[1769183540505,8.6982902,127.67,127.59,0.05133112]
[1769183540905,15.7577902,127.65,127.58,8.46749211]
[1769183541913,7.0584,127.67,127.58,8.46749211]
[1769183542117,8.6982902,127.67,127.58,8.46749211]
[1769183542310,8.6982902,127.66,127.58,8.46749211]
[1769183543113,7.0595,127.65,127.58,8.46749211]
[1769183545021,7.0595,127.65,127.6,0.04984802]
[1769183546625,15.7577902,127.65,127.6,0.04984802]
[1769183546916,15.7581902,127.64,127.55,8.46749211]
[1769183547111,8.75072759,127.64,127.55,8.46749211]
[1769183547415,8.75072759,127.64,127.57,15.53109211]
[1769183547610,8.6982902,127.64,127.57,15.53109211]
[1769183548817,0.05296493,127.62,127.57,15.53109211]
[1769183550006,8.75125513,127.62,127.55,7.0646]
[1769183550313,8.75125513,127.62,127.54,8.46749211]
[1769183550518,8.6982902,127.62,127.54,8.46749211]
[1769183550714,8.6982902,127.62,127.55,7.0647]
[1769183551008,0.05355129,127.59,127.54,8.46749211]
[1769183551420,8.75184149,127.59,127.51,7.06657416]
[1769183551617,8.6982902,127.57,127.5,8.46749211]
[1769183552516,8.6982902,127.57,127.47,117.02637416]
[1769183552715,8.6982902,127.57,127.48,8.29692608]
[1769183552716,0.0516432,127.55,127.48,8.29692608]
[1769183553423,0.0516432,127.55,127.49,7.0679]
[1769183553721,0.0516432,127.55,127.49,118.24372608]
[1769183554022,13.29038962,127.6,127.5,8.29692608]
[1769183554517,8.14100972,127.59,127.5,8.29692608]
[1769183554721,8.14100972,127.59,127.51,8.29692608]
[1769183555223,8.14100972,127.59,127.54,0.05289118]
[1769183557028,15.20440972,127.58,127.54,0.05289118]
[1769183557419,8.14100972,127.57,127.51,7.0669]
[1769183557722,8.19269601,127.57,127.51,7.0669]
[1769183559420,8.19269601,127.57,127.49,7.0678]
[1769183559617,8.14100972,127.56,127.49,7.0678]
[1769183560121,8.14100972,127.55,127.47,7.0689]
[1769183560316,8.19656718,127.54,127.47,7.0689]
[1769183561225,8.19656718,127.54,127.48,7.0685]
[1769183561423,0.05555746,127.54,127.47,118.26132608]
[1769183561633,0.05555746,127.54,127.48,8.29692608]
[1769183561826,13.29974539,127.57,127.48,8.29692608]
[1769183562022,20.36354539,127.57,127.5,7.0675]
[1769183562325,8.14100972,127.56,127.5,7.0675]
[1769183563019,0.05532739,127.54,127.5,7.0675]
[1769183563220,15.20400972,127.59,127.52,8.35059477]
[1769183563723,15.20400972,127.59,127.52,8.29692608]
[1769183563921,8.14100972,127.59,127.53,7.0659]
[1769183564121,7.062,127.61,127.52,8.29692608]
[1769183564327,8.14100972,127.62,127.52,8.29692608]
[1769183564518,8.14100972,127.62,127.55,8.34793578]
[1769183564717,8.14100972,127.66,127.55,8.34793578]
[1769183565319,8.14100972,127.66,127.55,8.29692608]
[1769183565725,8.14100972,127.66,127.59,0.05506725]
[1769183565921,15.20100972,127.64,127.59,0.05506725]
[1769183566527,15.20100972,127.64,127.57,7.0636]
[1769183566820,15.20100972,127.64,127.6,0.05499333]
[1769183568429,8.14100972,127.64,127.6,0.05499333]
[1769183569321,15.20090972,127.64,127.6,0.05499333]
[1769183570233,7.0605,127.63,127.55,15.36122608]
[1769183570529,8.14100972,127.62,127.55,7.0643]
[1769183571428,8.14100972,127.62,127.55,15.36122608]
[1769183571822,109.8062,127.66,127.56,8.29692608]
[1769183571823,15.20070972,127.65,127.56,8.29692608]
[1769183572028,8.14100972,127.65,127.56,8.29692608]
[1769183572330,7.0567,127.7,127.62,7.0604]
[1769183573030,15.19770972,127.7,127.62,7.0604]
[1769183573222,7.0572,127.69,127.61,8.29692608]
[1769183573426,8.14100972,127.69,127.61,8.29692608]
[1769183574025,7.0578,127.68,127.61,8.29692608]
[1769183574330,8.14100972,127.69,127.64,0.05240789]
[1769183575832,8.14100972,127.68,127.6,7.0619]
[1769183576636,8.14100972,127.68,127.58,15.35972608]
[1769183576833,8.14100972,127.68,127.58,8.29692608]
[1769183578028,15.19930972,127.67,127.59,7.0625]
[1769183578431,8.14100972,127.66,127.59,7.0625]
[1769183578735,15.20050972,127.65,127.58,8.29692608]
[1769183579531,8.14100972,127.64,127.55,118.19162608]
[1769183579732,8.14100972,127.64,127.56,8.29692608]
[1769183579932,8.14100972,127.64,127.58,7.0631]
[1769183580122,8.14100972,127.64,127.57,8.29692608]
[1769183580727,8.14100972,127.67,127.58,8.29692608]
[1769183581329,8.14100972,127.67,127.57,109.8747]
[1769183581330,8.14100972,127.65,127.55,118.19162608]
[1769183581533,8.19306405,127.64,127.55,118.19162608]
[1769183581929,8.10120235,127.67,127.58,8.21318453]
[1769183582127,8.10120235,127.67,127.59,8.21318453]
[1769183582525,8.10120235,127.67,127.6,8.21318453]
[1769183582935,8.10120235,127.67,127.59,7.0622]
[1769183583235,0.05398084,127.65,127.59,7.0622]
[1769183584141,0.05398084,127.65,127.6,7.0619]
[1769183584634,15.15970235,127.67,127.6,7.0619]
[1769183585435,8.10120235,127.67,127.6,15.27508453]
[1769183585632,109.7721,127.7,127.57,109.8778]
[1769183585633,8.15467051,127.65,127.57,8.21318453]
[1769183586136,8.10120235,127.65,127.57,8.21318453]
[1769183586336,15.16070235,127.65,127.57,15.27678453]
[1769183586636,0.05230673,127.62,127.57,15.27678453]
[1769183587440,8.36208614,127.62,127.55,7.0644]
[1769183587734,0.05230673,127.62,127.55,8.28341658]
[1769183587936,8.30977941,127.65,127.57,8.28341658]
[1769183588240,8.30977941,127.65,127.58,15.34651658]
[1769183588734,8.30977941,127.67,127.6,15.39543879]
[1769183589032,7.0581,127.68,127.61,8.28341658]
[1769183589241,8.30977941,127.7,127.61,8.28341658]
[1769183589538,8.30977941,127.7,127.62,8.28341658]
[1769183590237,8.30977941,127.7,127.65,0.05041623]
[1769183590442,8.30977941,127.7,127.6,8.28341658]
[1769183590835,8.30977941,127.67,127.57,8.28341658]
[1769183591236,8.30977941,127.66,127.54,118.18431658]
[1769183591533,8.30977941,127.66,127.55,8.28341658]
[1769183591932,15.36977941,127.64,127.57,7.0636]
[1769183593040,8.30977941,127.64,127.57,7.0636]
[1769183593237,15.36897941,127.66,127.58,15.34641658]
[1769183593637,8.30977941,127.66,127.59,7.0624]
[1769183594139,0.04953987,127.63,127.59,7.0624]
[1769183595746,0.04953987,127.63,127.58,8.28341658]
[1769183596846,8.35931928,127.63,127.55,8.28341658]
[1769183597344,8.30977941,127.66,127.56,8.28341658]
[1769183598444,15.36907941,127.65,127.59,7.0626]
[1769183599348,8.35954225,127.63,127.57,7.0633]
[1769183600349,8.30977941,127.62,127.56,7.0643]
[1769183601450,0.04997342,127.6,127.56,7.0643]
[1769183601949,0.04997342,127.6,127.55,7.0648]
[1769183602549,0.04997342,127.6,127.56,7.0643]
[1769183603845,0.04997342,127.6,127.54,15.34851658]
[1769183604150,0.04997342,127.6,127.54,8.28341658]
[1769183605953,0.04997342,127.6,127.54,15.34871658]
[1769183606947,8.35975283,127.6,127.52,15.34999074]
[1769183607149,8.35975283,127.6,127.53,8.28341658]
[1769183607353,8.30977941,127.6,127.53,8.28341658]
[1769183607944,15.37197941,127.6,127.53,15.34931658]
[1769183608249,8.30977941,127.59,127.53,7.0659]
[1769183608649,15.37247941,127.59,127.51,15.35001658]
[1769183608849,8.30977941,127.59,127.51,15.35001658]
[1769183609250,8.30977941,127.58,127.51,7.0666]
[1769183609952,7.0638,127.57,127.5,7.0676]
[1769183610152,8.30977941,127.57,127.5,7.0676]
[1769183611051,7.0644,127.56,127.5,7.0676]
[1769183611854,0.04951161,127.54,127.5,7.0676]
[1769183613354,15.37347941,127.57,127.5,7.0676]
[1769183613554,8.72246006,127.56,127.51,0.04943122]
[1769183613756,8.72246006,127.56,127.51,7.11643122]
[1769183614356,15.78686006,127.56,127.51,0.04943122]
[1769183616061,8.72246006,127.56,127.51,0.04943122]
[1769183618757,8.72246006,127.55,127.51,0.04943122]
[1769183619365,8.72246006,127.54,127.47,8.06604824]
[1769183620857,8.72246006,127.56,127.48,8.06604824]
[1769183621258,8.72246006,127.56,127.49,15.13414824]
[1769183621552,8.72246006,127.56,127.49,8.06604824]
[1769183622067,15.78736006,127.55,127.49,8.06604824]
[1769183622767,0.04952734,127.53,127.49,8.06604824]
[1769183623669,8.7719874,127.53,127.47,8.06604824]
[1769183624259,8.72246006,127.53,127.47,8.06604824]
[1769183624760,8.77379171,127.51,127.44,15.13644824]
[1769183625256,15.78946006,127.51,127.44,15.13644824]
[1769183625461,15.78946006,127.51,127.45,15.13624824]
[1769183626474,8.72246006,127.51,127.45,15.13624824]
[1769183626769,8.72246006,127.53,127.46,7.0698]
[1769183627570,8.72246006,127.53,127.45,8.06604824]
[1769183628073,15.78886006,127.53,127.45,8.06604824]
[1769183628265,8.72246006,127.56,127.45,8.06604824]
[1769183628473,8.72246006,127.56,127.48,0.05238592]
[1769183628968,15.78706006,127.56,127.48,8.06604824]
[1769183629765,15.78736006,127.55,127.48,8.06604824]
[1769183629955,8.72246006,127.53,127.46,8.06604824]
[1769183630971,2.10276972,127.51,127.46,8.06604824]
[1769183631870,0.05022159,127.5,127.46,8.06604824]
[1769183634672,0.05022159,127.5,127.42,110.0075]
[1769183634673,0.05022159,127.5,127.44,8.06604824]
[1769183634975,2.10276972,127.49,127.44,8.06604824]
[1769183635369,8.72246006,127.52,127.44,15.13694824]
[1769183635370,2.10276972,127.5,127.44,15.13694824]
[1769183636478,15.79026006,127.5,127.44,15.13694824]
[1769183636681,2.10276972,127.49,127.44,15.13694824]
[1769183637076,2.10276972,127.49,127.44,8.06604824]
[1769183637770,0.05002843,127.48,127.44,8.06604824]
[1769183639578,0.05002843,127.48,127.42,8.06604824]
[1769183639880,2.10276972,127.47,127.42,15.13804824]
[1769183641778,2.10276972,127.47,127.42,8.06604824]
[1769183642281,2.10276972,127.47,127.42,15.13804824]
[1769183643077,2.10276972,127.5,127.45,8.7635496]
[1769183643578,2.10276972,127.51,127.45,15.8339496]
[1769183643781,2.10276972,127.51,127.46,8.7635496]
[1769183643982,2.10276972,127.51,127.45,7.0704]
[1769183644187,9.16986972,127.51,127.44,8.7635496]
[1769183644872,0.05126638,127.49,127.46,8.7635496]
[1769183645077,2.10276972,127.52,127.46,8.7635496]
[1769183646080,2.10276972,127.55,127.47,2.10276972]
[1769183646278,2.10276972,127.55,127.48,8.21807367]
[1769183646580,2.10276972,127.55,127.48,8.27136506]
[1769183646974,2.10276972,127.55,127.48,15.33996506]
[1769183647375,2.10276972,127.55,127.49,8.21807367]
[1769183648782,9.16766972,127.55,127.49,8.21807367]
[1769183650175,9.16766972,127.55,127.51,0.0508652]
[1769183650577,2.10276972,127.55,127.51,0.0508652]
[1769183651184,10.16901432,127.55,127.51,0.0508652]
[1769183652980,17.23401432,127.55,127.51,0.0508652]
[1769183653179,10.16901432,127.55,127.51,0.0508652]
[1769183653378,2.10276972,127.58,127.51,8.26893887]
[1769183654885,2.10276972,127.58,127.52,7.0664]
[1769183655089,15.1291446,127.59,127.52,7.0664]
[1769183655290,15.1291446,127.59,127.52,15.28447367]
[1769183655291,2.10276972,127.58,127.52,15.28447367]
[1769183655689,2.10276972,127.58,127.54,0.05134373]
[1769183656580,2.10276972,127.6,127.54,15.3346174]
[1769183657292,2.10276972,127.6,127.54,15.28327367]
[1769183657489,2.10276972,127.6,127.56,0.05317146]
[1769183658193,10.16901432,127.6,127.56,0.05317146]
[1769183658487,2.10276972,127.58,127.52,15.28407367]
[1769183658790,7.0627,127.59,127.53,15.28397367]
[1769183658985,9.16546972,127.59,127.53,15.28397367]
[1769183659792,2.10276972,127.59,127.55,8.21807367]
[1769183660692,2.10276972,127.59,127.54,7.0654]
[1769183662696,2.10276972,127.59,127.55,7.0648]
[1769183662994,2.10276972,127.59,127.53,8.21807367]
[1769183663794,2.10276972,127.59,127.54,15.28297367]
[1769183664396,15.1278446,127.61,127.54,15.28297367]
[1769183664593,2.10276972,127.6,127.54,15.28297367]
[1769183665191,2.10276972,127.6,127.55,15.28277367]
[1769183665592,2.10276972,127.62,127.55,8.21807367]
[1769183666085,9.16266972,127.64,127.56,10.32084339]
[1769183666285,10.16901432,127.62,127.54,10.32084339]
[1769183666496,10.16901432,127.62,127.54,8.21807367]
[1769183667896,10.16901432,127.62,127.56,7.064]
[1769183668099,10.16901432,127.62,127.56,15.28207367]
[1769183668998,2.10276972,127.6,127.56,7.064]
[1769183669293,2.10276972,127.63,127.58,0.05054868]
[1769183669498,2.10276972,127.63,127.58,8.26862235]
[1769183669892,2.10276972,127.63,127.59,7.0626]
[1769183670096,2.10276972,127.65,127.58,8.21807367]
[1769183670597,10.16901432,127.65,127.58,15.28077367]
[1769183672289,2.10276972,127.64,127.58,15.28077367]
[1769183674205,2.10276972,127.64,127.6,0.05039729]
[1769183674395,7.781201,127.61,127.56,7.0638]
[1769183674592,2.10276972,127.6,127.56,7.0638]
[1769183675196,2.10276972,127.6,127.56,15.27231738]
[1769183676302,0.05333466,127.59,127.56,15.27231738]
[1769183678106,0.05333466,127.59,127.56,8.20851738]
[1769183680016,0.05333466,127.59,127.56,15.27261738]
[1769183680219,2.10276972,127.6,127.56,15.32574949]
[1769183680603,2.10276972,127.6,127.56,8.26164949]
[1769183681006,2.09969737,127.6,127.56,8.26164949]
[1769183681306,2.09969737,127.6,127.56,15.32574949]
[1769183681507,9.88089837,127.62,127.56,8.26164949]
[1769183682715,2.09969737,127.62,127.56,8.26164949]
[1769183682917,2.09969737,127.62,127.57,7.0635]
[1769183684412,2.09969737,127.62,127.57,15.27201738]
[1769183684612,7.0596,127.65,127.59,7.0625]
[1769183684815,2.09969737,127.64,127.58,8.20851738]
[1769183685517,2.09969737,127.64,127.6,0.05025175]
[1769183686015,16.93969837,127.66,127.6,8.25876913]
[1769183687818,9.88089837,127.66,127.6,15.32056913]
[1769183688924,9.88089837,127.66,127.6,0.05025175]
[1769183689434,7.781201,127.65,127.6,0.05025175]
[1769183691434,2.09969737,127.64,127.6,0.05025175]
[1769183694037,9.88089837,127.64,127.6,0.05025175]
[1769183694334,9.88089837,127.63,127.6,0.05025175]
[1769183694732,9.88089837,127.63,127.56,10.30821475]
[1769183694932,9.88089837,127.63,127.57,8.20851738]
[1769183695932,9.88089837,127.63,127.58,7.0631]
[1769183696132,9.88089837,127.63,127.59,0.05368216]
[1769183701730,7.781201,127.62,127.55,10.30821475]
[1769183702137,7.781201,127.62,127.56,8.13172168]
[1769183703138,10.56063706,127.59,127.52,15.25956767]
[1769183703337,10.56063706,127.59,127.52,8.13172168]
[1769183703338,2.09969737,127.57,127.52,8.13172168]
[1769183704043,8.46093969,127.61,127.53,8.13172168]
[1769183704247,10.56063706,127.61,127.55,8.13172168]
[1769183704433,10.56063706,127.63,127.55,8.13172168]
[1769183704739,109.801,127.67,127.55,8.13172168]
[1769183704740,2.09969737,127.61,127.55,8.13172168]
[1769183705940,2.09969737,127.61,127.55,15.19652168]
[1769183706539,11.13632285,127.61,127.55,15.19652168]
[1769183707242,0.05406324,127.59,127.55,15.19652168]
[1769183710739,0.05406324,127.59,127.55,7.0648]
[1769183711347,9.09068872,127.59,127.53,15.50437811]
[1769183711648,2.09969737,127.58,127.53,7.0655]
[1769183713450,11.13632285,127.58,127.53,7.0655]
[1769183713952,0.05406324,127.59,127.53,8.43887811]
[1769183714152,0.05406324,127.59,127.53,10.53857548]
[1769183714346,0.05406324,127.59,127.54,118.34207811]
[1769183714652,2.09969737,127.62,127.55,8.43887811]
[1769183715750,11.13632285,127.62,127.55,15.50317811]
[1769183715948,11.13632285,127.62,127.57,0.05070295]
[1769183716446,11.13632285,127.6,127.53,8.43887811]
[1769183716750,2.09969737,127.58,127.53,8.43887811]
[1769183716947,11.13632285,127.58,127.51,7.14311045]
[1769183717157,2.09969737,127.53,127.47,8.43887811]
[1769183718154,2.09969737,127.53,127.48,8.43887811]
[1769183718543,9.03662548,127.58,127.49,8.43887811]
[1769183718852,2.09969737,127.58,127.52,8.43887811]
[1769183720054,2.09969737,127.58,127.52,15.50517811]
[1769183720750,0.05035995,127.56,127.52,15.50517811]
[1769183722856,0.05035995,127.56,127.52,8.43887811]
[1769183723051,0.05035995,127.56,127.5,8.43887811]
[1769183723052,11.1866828,127.56,127.5,8.43887811]
[1769183724458,2.15005732,127.56,127.51,8.43887811]
[1769183725159,2.09969737,127.56,127.51,8.43887811]
[1769183725361,0.05068305,127.55,127.51,8.43887811]
[1769183726060,0.05068305,127.55,127.51,15.50577811]
[1769183727752,0.05068305,127.55,127.52,7.0663]
[1769183730267,0.05068305,127.55,127.49,109.9467]
[1769183730268,0.05068305,127.55,127.5,7.067]
[1769183730864,0.05068305,127.55,127.5,15.50587811]
[1769183731266,2.09969737,127.54,127.48,8.43887811]
[1769183732863,2.09969737,127.54,127.49,7.0681]
[1769183733864,10.23322187,127.54,127.49,7.0681]
[1769183734370,2.09969737,127.54,127.5,7.0674]
[1769183735471,8.1335245,127.56,127.5,8.58263528]
[1769183735673,10.23322187,127.56,127.5,8.58263528]
[1769183736975,2.09969737,127.56,127.52,7.0665]
[1769183737376,0.04995799,127.54,127.52,7.0665]
[1769183738978,0.04995799,127.54,127.5,15.64973528]
[1769183739478,2.14965536,127.54,127.5,15.64973528]
[1769183741676,0.04995799,127.54,127.51,8.58263528]
[1769183742980,0.04995799,127.54,127.52,7.0665]
[1769183744669,2.15113279,127.54,127.51,7.067]
[1769183745172,2.15113279,127.54,127.49,15.65043528]
[1769183746370,2.15113279,127.54,127.5,7.0676]
[1769183747278,0.04995799,127.54,127.5,7.0676]
[1769183747477,2.1011748,127.56,127.51,15.64913528]
[1769183747880,2.1011748,127.56,127.51,8.58263528]
[1769183748978,2.1011748,127.56,127.52,7.0664]
[1769183749777,2.1011748,127.56,127.51,8.58263528]
[1769183749981,2.1011748,127.56,127.49,8.58263528]
[1769183749982,2.1011748,127.54,127.49,8.58263528]
[1769183750489,2.1011748,127.54,127.5,0.05068949]
[1769183751891,2.1011748,127.54,127.5,7.11828949]
[1769183755896,10.2346993,127.54,127.5,0.05068949]
[1769183758597,2.1011748,127.54,127.5,0.05068949]
[1769183759005,8.1335245,127.56,127.5,7.11778949]
[1769183759303,2.1011748,127.55,127.5,7.11778949]
[1769183761402,8.1335245,127.58,127.51,8.58263528]
[1769183761614,2.1011748,127.57,127.51,8.58263528]
[1769183761804,10.2346993,127.57,127.51,8.58263528]
[1769183762001,10.2346993,127.57,127.52,7.0663]
[1769183762208,10.4921786,127.55,127.49,8.10675909]
[1769183762712,10.4921786,127.53,127.47,15.24986954]
[1769183762915,10.4921786,127.53,127.47,8.10675909]
[1769183763306,10.4921786,127.53,127.48,7.0687]
[1769183763714,2.1011748,127.55,127.49,8.10675909]
[1769183764112,2.1011748,127.55,127.5,7.0671]
[1769183764311,0.05113295,127.53,127.5,7.0671]
[1769183764615,2.1011748,127.58,127.51,8.10675909]
[1769183764815,10.4921786,127.58,127.51,8.10675909]
[1769183765811,8.3910038,127.6,127.52,8.10675909]
[1769183766010,2.1011748,127.6,127.54,8.10675909]
[1769183766318,10.63468546,127.61,127.54,8.10675909]
[1769183766812,10.63468546,127.61,127.55,15.4239717]
[1769183767011,2.1011748,127.63,127.56,8.3592717]
[1769183767318,2.1011748,127.63,127.56,15.50238215]
[1769183767616,2.1011748,127.63,127.57,8.3592717]
[1769183768013,2.1011748,127.63,127.58,0.05292751]
[1769183769112,10.63468546,127.63,127.58,0.05292751]
[1769183769423,15.59241066,127.66,127.58,7.11582751]
[1769183769613,10.63468546,127.65,127.58,15.47509921]
[1769183770116,10.63468546,127.65,127.58,15.4221717]
[1769183771411,17.69408546,127.65,127.58,15.4221717]
[1769183772624,8.53351066,127.64,127.58,8.3592717]
[1769183772824,10.63468546,127.63,127.56,15.4230717]
[1769183773316,10.63468546,127.63,127.58,0.05168676]
[1769183774018,8.53351066,127.62,127.58,0.05168676]
[1769183774316,2.1011748,127.61,127.58,0.05168676]
[1769183774723,2.1011748,127.61,127.54,17.5253465]
[1769183774916,10.63468546,127.61,127.54,17.5253465]
[1769183775717,8.53351066,127.59,127.53,7.0659]
[1769183775925,10.63468546,127.59,127.53,7.0659]
[1769183776321,8.58356799,127.59,127.54,7.0653]
[1769183776824,10.63468546,127.62,127.54,8.3592717]
[1769183777417,10.63468546,127.62,127.56,7.0641]
[1769183777623,8.53351066,127.62,127.56,7.0641]
[1769183777915,2.1011748,127.63,127.56,8.3592717]
[1769183778421,8.53351066,127.65,127.56,8.3592717]
[1769183778625,10.63468546,127.65,127.57,8.3592717]
[1769183779318,17.69398546,127.65,127.59,7.0625]
[1769183779818,10.63468546,127.67,127.59,15.4217717]
[1769183780016,10.63468546,127.67,127.6,10.4604465]
[1769183781027,10.63468546,127.67,127.61,7.0614]
[1769183781226,8.53351066,127.67,127.61,7.0614]
[1769183782120,0.05148972,127.65,127.61,7.0614]
[1769183782323,0.05148972,127.65,127.62,15.4200717]
[1769183782524,8.53351066,127.69,127.62,15.4200717]
[1769183782729,8.53351066,127.69,127.62,17.5212465]
[1769183784026,8.53351066,127.69,127.64,0.05130779]
[1769183785530,8.53351066,127.72,127.65,8.3592717]
[1769183786934,8.53351066,127.72,127.66,7.0587]
[1769183787231,8.53351066,127.72,127.67,0.05265081]
[1769183788027,8.53351066,127.74,127.68,2.1011748]
[1769183788738,10.63468546,127.74,127.67,10.4604465]
[1769183788925,8.53351066,127.73,127.67,2.1011748]
[1769183789234,8.53351066,127.73,127.65,8.3592717]
[1769183789235,8.53351066,127.73,127.66,8.3592717]
[1769183789932,8.53351066,127.73,127.67,7.0581]
[1769183790125,8.53351066,127.73,127.68,0.05091959]
[1769183794933,8.53351066,127.73,127.68,7.10851959]